Workbook

Sheet साप्ताहिक विक्रय गतिविधि
B2: साप्ताहिक विक्रय गतिविधि | I2: विक्रेता | J2: एनव सिल्वरमैन | L2: सप्ताह का अंत | M2: 2012-10-19
I3: स्थान | J3: Redmond, WA - Region 12 | L3: आज का दिनांक | M3: =TODAY() -> 2012-10-19
B5: दिन | C5: विक्रय कार्यालय में | D5: बाहरी कार्यालय | E5: कार्यालय दौरों में | F5: बाहरी कॉल | G5: फ़ाइल फ़ोन कॉल | H5: नया खाता फ़ोन | I5: अतिथियों के कमरे | J5: भोजन और पेय | K5: MTG. कमरे का किराया | L5: अन्य* | M5: कुल
B6: सोमवार | C6: ₹ 14.00 | D6: ₹ 23.00 | E6: ₹ 4.00 | F6: ₹ 45.00 | G6: ₹ 22.00 | H6: ₹ 2.00 | I6: ₹ 100.00 | J6: ₹ 0.00 | K6: ₹ 0.00 | L6: ₹ 0.00 | M6: =SUM(Activity[[#This Row],[विक्रय कार्यालय में]:[अन्य*]]) -> ₹ 210.00
B7: मंगलवार | C7: ₹ 23.00 | D7: ₹ 76.00 | E7: ₹ 10.00 | F7: ₹ 50.00 | G7: ₹ 54.00 | H7: ₹ 45.00 | I7: ₹ 80.00 | J7: ₹ 0.00 | K7: ₹ 0.00 | L7: ₹ 0.00 | M7: =SUM(Activity[[#This Row],[विक्रय कार्यालय में]:[अन्य*]]) -> ₹ 338.00
B8: बुधवार | C8: ₹ 4.00 | D8: ₹ 130.00 | E8: ₹ 11.00 | F8: ₹ 33.00 | G8: ₹ 67.00 | H8: ₹ 65.00 | I8: ₹ 400.00 | J8: ₹ 0.00 | K8: ₹ 0.00 | L8: ₹ 0.00 | M8: =SUM(Activity[[#This Row],[विक्रय कार्यालय में]:[अन्य*]]) -> ₹ 710.00
B9: गुरूवार | C9: ₹ 102.00 | D9: ₹ 40.00 | E9: ₹ 18.00 | F9: ₹ 0.00 | G9: ₹ 86.00 | H9: ₹ 82.00 | I9: ₹ 97.00 | J9: ₹ 0.00 | K9: ₹ 0.00 | L9: ₹ 0.00 | M9: =SUM(Activity[[#This Row],[विक्रय कार्यालय में]:[अन्य*]]) -> ₹ 425.00
B10: शुक्रवार | C10: ₹ 33.00 | D10: ₹ 55.00 | E10: ₹ 22.00 | F10: ₹ 49.00 | G10: ₹ 143.00 | H10: ₹ 26.00 | I10: ₹ 50.00 | J10: ₹ 0.00 | K10: ₹ 0.00 | L10: ₹ 0.00 | M10: =SUM(Activity[[#This Row],[विक्रय कार्यालय में]:[अन्य*]]) -> ₹ 378.00
B11: शनिवार | C11: ₹ 0.00 | D11: ₹ 0.00 | E11: ₹ 0.00 | F11: ₹ 0.00 | G11: ₹ 0.00 | H11: ₹ 0.00 | I11: ₹ 0.00 | J11: ₹ 0.00 | K11: ₹ 0.00 | L11: ₹ 0.00 | M11: =SUM(Activity[[#This Row],[विक्रय कार्यालय में]:[अन्य*]]) -> ₹ 0.00
B12: रविवार | C12: ₹ 0.00 | D12: ₹ 0.00 | E12: ₹ 0.00 | F12: ₹ 0.00 | G12: ₹ 0.00 | H12: ₹ 0.00 | I12: ₹ 0.00 | J12: ₹ 0.00 | K12: ₹ 0.00 | L12: ₹ 0.00 | M12: =SUM(Activity[[#This Row],[विक्रय कार्यालय में]:[अन्य*]]) -> ₹ 0.00
B13: कुल | C13: =SUBTOTAL(109,Activity[विक्रय कार्यालय में]) -> ₹ 176.00 | D13: =SUBTOTAL(109,Activity[बाहरी कार्यालय]) -> ₹ 324.00 | E13: =SUBTOTAL(109,Activity[कार्यालय दौरों में]) -> ₹ 65.00 | F13: =SUBTOTAL(109,Activity[बाहरी कॉल]) -> ₹ 177.00 | G13: =SUBTOTAL(109,Activity[फ़ाइल फ़ोन कॉल]) -> ₹ 372.00 | H13: =SUBTOTAL(109,Activity[नया खाता फ़ोन]) -> ₹ 220.00 | I13: =SUBTOTAL(105,Activity[अतिथियों के कमरे]) -> ₹ 0.00 | J13: =SUBTOTAL(109,Activity[भोजन और पेय]) -> ₹ 0.00 | K13: =SUBTOTAL(109,Activity[MTG. कमरे का किराया]) -> ₹ 0.00 | L13: =SUBTOTAL(109,Activity[अन्य*]) -> ₹ 0.00 | M13: =SUBTOTAL(109,Activity[कुल]) -> ₹ 2,061.00
B15: लक्ष्य | C15: ₹ 200.00 | D15: ₹ 400.00 | E15: ₹ 300.00 | F15: ₹ 65.00 | G15: ₹ 500.00 | H15: ₹ 300.00 | I15: ₹ 400.00 | J15: ₹ 600.00 | K15: ₹ 300.00 | L15: ₹ 300.00 | M15: =SUM(C15:L15) -> ₹ 3,365.00
B16: भिन्नताएँ | C16: =SUM(Activity[[#Totals],[विक्रय कार्यालय में]]-C15) -> -₹ 24.00 | D16: =SUM(Activity[[#Totals],[बाहरी कार्यालय]]-D15) -> -₹ 76.00 | E16: =SUM(Activity[[#Totals],[कार्यालय दौरों में]]-E15) -> -₹ 235.00 | F16: =SUM(Activity[[#Totals],[कार्यालय दौरों में]]-F15) -> ₹ 0.00 | G16: =SUM(Activity[[#Totals],[फ़ाइल फ़ोन कॉल]]-G15) -> -₹ 128.00 | H16: =SUM(Activity[[#Totals],[नया खाता फ़ोन]]-H15) -> -₹ 80.00 | I16: =SUM(Activity[[#Totals],[अतिथियों के कमरे]]-I15) -> -₹ 400.00 | J16: =SUM(Activity[[#Totals],[भोजन और पेय]]-J15) -> -₹ 600.00 | K16: =SUM(Activity[[#Totals],[MTG. कमरे का किराया]]-K15) -> -₹ 300.00 | L16: =SUM(Activity[[#Totals],[अन्य*]]-L15) -> -₹ 300.00 | M16: =SUM(C16:L16) -> -₹ 2,143.00
B19: *व्याख्या
B21: अनुमति
